bitfinex/quotes_SOLUSD_20260311
["timestamp","ask_amount","ask_price","bid_price","bid_amount"]
[1773239585961,40.4395198,86.549,86.509,3.02995966]
[1773239585962,11.55548365,86.539,86.509,3.02995966]
[1773239586273,40.44419278,86.539,86.511,3.02995966]
[1773239586472,11.55548365,86.539,86.511,3.02995966]
[1773239586979,40.44419278,86.539,86.511,3.02995966]
[1773239587372,2.99246613,86.529,86.49,7.48701876]
[1773239587557,7.48701876,86.53,86.49,7.48701876]
[1773239587759,2.99246613,86.529,86.49,7.48701876]
[1773239587953,2.99246613,86.529,86.478,2.84]
[1773239587954,11.55828844,86.518,86.481,11.56323354]
[1773239588264,11.55548365,86.539,86.5,7.48701876]
[1773239589057,28.88507403,86.55,86.51,7.48701876]
[1773239589058,10.47948489,86.55,86.51,7.48701876]
[1773239589258,43.43198593,86.549,86.511,3.02995966]
[1773239589474,14.54661464,86.549,86.511,3.02995966]
[1773239590058,14.54661464,86.549,86.513,3.02995966]
[1773239590262,7.48701876,86.54,86.513,3.02995966]
[1773239590661,10.47948489,86.54,86.504,3.02995966]
[1773239590867,7.48701876,86.53,86.505,11.56002543]
[1773239591076,10.47948489,86.54,86.505,11.56002543]
[1773239591571,7.48701876,86.54,86.506,3.02995966]
[1773239591777,2.99246613,86.539,86.506,3.02995966]
[1773239592081,11.55561718,86.538,86.506,3.02995966]
[1773239592276,28.88537129,86.549,86.511,3.02995966]
[1773239592477,28.88537129,86.549,86.507,11.55975816]
[1773239592478,2.99246613,86.577,86.54,7.48701876]
[1773239592680,7.48701876,86.59,86.56,7.48701876]
[1773239592881,11.54881104,86.589,86.56,10.51697842]
[1773239593057,11.54805637,86.595,86.56,10.51697842]
[1773239593693,7.48701876,86.59,86.56,10.51697842]
[1773239594162,11.54881104,86.589,86.56,10.51697842]
[1773239594358,2.99246613,86.569,86.53,7.48701876]
[1773239594565,2.99246613,86.539,86.498,11.56094641]
[1773239594771,1.44395157,86.568,86.492,3.02995966]
[1773239594772,7.48701876,86.52,86.492,3.02995966]
[1773239594977,2.99246613,86.529,86.492,3.02995966]
[1773239596078,7.48701876,86.53,86.493,11.56162926]
[1773239596388,28.8884095,86.54,86.501,3.02995966]
[1773239596389,14.54794978,86.539,86.501,3.02995966]
[1773239596794,11.55428201,86.548,86.511,3.02995966]
[1773239597297,7.48701876,86.54,86.511,3.02995966]
[1773239598006,11.55364805,86.553,86.521,3.02995966]
[1773239598295,11.55307839,86.558,86.53,10.51697842]
[1773239599198,11.55307839,86.558,86.523,3.02995966]
[1773239600297,3.14215029,86.539,86.499,3.0279583]
[1773239600505,7.48701876,86.55,86.511,3.0279583]
[1773239600997,7.48701876,86.55,86.52,7.48701876]
[1773239601299,3.14215029,86.554,86.52,7.48701876]
[1773239601495,3.14215029,86.549,86.511,3.0279583]
[1773239601697,7.48701876,86.55,86.511,3.0279583]
[1773239601901,7.48701876,86.55,86.52,3.0279583]
[1773239602798,11.55308062,86.557,86.521,11.55788768]
[1773239603286,3.14215029,86.529,86.49,7.48701876]
[1773239603488,7.48701876,86.5,86.473,3.0279583]
[1773239603883,7.48701876,86.5,86.471,11.56457078]
[1773239603884,7.48701876,86.5,86.462,3.0279583]
[1773239604080,7.48701876,86.5,86.47,7.48701876]
[1773239604392,7.48701876,86.51,86.471,3.0279583]
[1773239604585,10.62916905,86.52,86.48,10.51497706]
[1773239604799,7.48701876,86.51,86.481,14.59119184]
[1773239605188,7.48701876,86.51,86.471,11.56454713]
[1773239605387,3.14215029,86.518,86.47,7.48701876]
[1773239605605,3.14215029,86.518,86.481,3.0279583]
[1773239605898,7.48701876,86.51,86.481,3.0279583]
[1773239606107,7.48701876,86.51,86.471,3.0279583]
[1773239606399,7.48701876,86.5,86.47,7.48701876]
[1773239606598,3.14215029,86.509,86.47,7.48701876]
[1773239606791,11.55962454,86.508,86.472,3.0279583]
[1773239607604,40.45868589,86.508,86.472,3.0279583]
[1773239608293,11.55962454,86.508,86.472,3.0279583]
[1773239609005,7.48720957,86.5,86.471,11.56457078]
[1773239609301,11.55962454,86.508,86.472,3.0279583]
[1773239609504,11.55895259,86.514,86.481,3.0279583]
[1773239609685,7.48720957,86.51,86.481,3.0279583]
[1773239609886,11.55895259,86.514,86.481,3.0279583]
[1773239610092,11.55895259,86.514,86.491,3.0279583]
[1773239610387,11.55895259,86.514,86.48,10.51516787]
[1773239610593,3.14215029,86.509,86.472,3.0279583]
[1773239611286,11.55962454,86.508,86.473,14.5922616]
[1773239611487,11.55962454,86.508,86.474,3.0279583]
[1773239611994,7.48720957,86.5,86.464,14.59346533]
[1773239612189,2.0,106.0,86.481,3.0279583]
[1773239612190,7.48720957,86.52,86.481,3.0279583]
[1773239612500,11.55815485,86.519,86.481,3.0279583]
[1773239612896,3.14215029,86.509,86.47,7.48720957]
[1773239613104,7.48720957,86.5,86.467,3.0279583]
[1773239613450,11.55949092,86.509,86.481,3.0279583]
[1773239615706,11.55949092,86.509,86.482,11.56309983]
[1773239615907,11.55831211,86.518,86.483,3.0279583]
[1773239616307,7.48720957,86.51,86.483,3.0279583]
[1773239616517,3.14215029,86.489,86.451,3.0279583]
[1773239616808,7.48720957,86.49,86.452,3.0279583]
[1773239617016,7.48720957,86.49,86.451,11.56724618]
[1773239617017,7.48720957,86.5,86.461,3.0279583]
[1773239617211,7.48720957,86.5,86.471,3.0279583]
[1773239617411,3.14215029,86.517,86.481,3.0279583]
[1773239617908,11.55855564,86.516,86.482,14.59105813]
[1773239618591,40.45494474,86.516,86.482,14.59105813]
[1773239618792,7.48720957,86.51,86.482,3.0279583]
[1773239618992,7.48720957,86.51,86.47,7.48720957]
[1773239618993,3.14215029,86.509,86.473,11.56427707]
[1773239619194,3.14215029,86.509,86.452,6.72179232]
[1773239619411,7.48720957,86.46,86.431,3.0279583]
[1773239619615,1.44495306,86.508,86.411,11.57260071]
[1773239619616,7.48720957,86.44,86.411,3.0279583]
[1773239619914,11.56898586,86.438,86.404,2.97003838]
[1773239620117,11.56898586,86.438,86.411,2.97003838]
[1773239621994,7.48720957,86.45,86.413,2.97003838]
[1773239622826,11.56751379,86.449,86.421,2.97003838]
[1773239622998,11.56617587,86.459,86.421,2.97003838]
[1773239623512,3.16484681,86.458,86.421,2.97003838]
[1773239624016,11.56617587,86.459,86.423,2.97003838]
[1773239625316,11.56547876,86.465,86.431,2.97003838]
[1773239626101,3.16484681,86.468,86.432,11.56978896]
[1773239626497,3.16484681,86.468,86.432,14.53982734]
[1773239626696,3.16484681,86.468,86.433,2.97003838]
[1773239627794,11.56483826,86.469,86.433,2.97003838]
[1773239627991,11.56483826,86.469,86.432,40.49426137]
[1773239627992,3.16484681,86.477,86.441,2.97003838]
[1773239628206,36.39594088,86.48,86.443,2.97003838]
[1773239628207,11.56390212,86.476,86.443,2.97003838]
[1773239628520,3.16484681,86.469,86.434,11.56952125]
[1773239628904,3.16484681,86.459,86.42,19.05860508]
[1773239629116,3.16484681,86.459,86.421,2.97003838]
[1773239629613,3.16484681,86.459,86.385,46.3042227]
[1773239629614,10.68280529,86.44,86.41,2.97003838]
[1773239629821,3.19559572,86.439,86.402,3.08464033]
[1773239631016,3.19559572,86.437,86.403,11.57367221]
[1773239631624,3.19559572,86.437,86.404,3.08464033]
[1773239632509,40.49145051,86.438,86.398,11.57424633]
[1773239632510,3.19559572,86.429,86.398,11.57424633]
[1773239632696,3.19559572,86.419,86.39,19.26261327]
[1773239632895,3.19559572,86.419,86.39,22.3472536]
[1773239633097,14.76578628,86.429,86.391,3.08464033]
[1773239633319,3.19559572,86.428,86.391,3.08464033]
[1773239635418,11.5704583,86.427,86.392,14.65978617]
[1773239635733,11.5704583,86.427,86.39,7.68720957]
[1773239635734,3.19559572,86.419,86.39,0.2]
[1773239636530,3.19559572,86.419,86.38,7.68720957]
[1773239636531,3.19559572,86.399,86.38,0.2]
[1773239637406,11.57434199,86.398,86.38,0.2]
[1773239637911,10.68280529,86.39,86.361,11.57930084]
[1773239638105,3.19559572,86.39,86.361,11.57930084]
[1773239638308,11.57434199,86.398,86.362,3.08464033]
[1773239638817,11.57420803,86.399,86.37,7.48720957]
[1773239639122,3.19559572,86.398,86.362,3.08464033]
[1773239639627,11.57447596,86.397,86.37,7.48720957]
[1773239639838,7.48720957,86.41,86.381,3.08464033]
[1773239640022,3.19559572,86.417,86.381,3.08464033]
[1773239640210,7.48720957,86.41,86.381,3.08464033]
[1773239640533,3.19559572,86.409,86.371,3.08464033]
[1773239640736,3.19559572,86.409,86.352,3.69383402]
[1773239640737,3.19559572,86.399,86.361,3.08464033]
[1773239641335,7.48720957,86.41,86.371,3.08464033]
[1773239641638,40.50182142,86.416,86.338,3.08464033]
[1773239641639,3.19559572,86.377,86.338,3.08464033]
[1773239641828,3.19559572,86.359,86.32,10.5718499]
[1773239642131,3.19559572,86.359,86.324,11.58425177]
[1773239642428,40.51957673,86.378,86.32,10.5718499]
[1773239642429,10.68280529,86.35,86.32,14.66944064]
[1773239642621,7.48720957,86.36,86.321,3.08464033]
[1773239642815,7.48720957,86.35,86.321,3.08464033]
[1773239643010,3.19559572,86.359,86.321,3.08464033]
[1773239643231,3.19559572,86.349,86.311,3.08464033]
[1773239643460,7.48720957,86.35,86.313,3.08464033]
[1773239643729,7.48720957,86.35,86.312,11.5858745]
[1773239643730,3.19559572,86.357,86.322,11.58453233]
[1773239644111,2.76,86.384,86.322,11.58453233]
[1773239644112,3.19559572,86.388,86.351,3.08464033]
[1773239644337,14.77185824,86.384,86.351,3.08464033]
[1773239644536,3.19559572,86.406,86.371,3.08464033]
[1773239645028,1.44617342,86.435,86.38,7.48720957]
[1773239645029,11.57340431,86.405,86.38,7.48720957]
[1773239645231,11.57193112,86.416,86.381,3.08464033]
[1773239645443,3.19559572,86.409,86.37,10.5718499]
[1773239645617,7.48720957,86.4,86.37,7.48720957]
[1773239645814,11.57352995,86.405,86.38,7.48720957]
[1773239646013,7.48720957,86.4,86.362,3.08464033]
[1773239646214,7.48720957,86.39,86.362,3.08464033]
[1773239646417,3.19559572,86.379,86.341,11.58198306]
[1773239646823,11.57352995,86.405,86.351,3.08464033]
[1773239646824,7.48720957,86.39,86.351,3.08464033]
[1773239647019,10.68280529,86.4,86.361,3.08464033]
[1773239647238,3.19559572,86.379,86.342,3.08464033]
[1773239647737,7.48720957,86.38,86.35,7.48720957]
[1773239648120,7.48720957,86.37,86.342,3.08464033]
[1773239648320,40.51910765,86.379,86.344,3.08464033]
[1773239649117,11.5768879,86.379,86.35,7.48720957]
[1773239649323,11.5768879,86.379,86.351,3.08464033]
[1773239649628,11.5768879,86.379,86.341,3.08464033]
[1773239649826,3.19559572,86.387,86.351,3.08464033]
[1773239650021,11.5759498,86.386,86.351,3.08464033]
[1773239650221,7.48720957,86.38,86.353,3.08464033]
[1773239650818,11.5759498,86.386,86.353,3.08464033]
[1773239651438,40.51582431,86.386,86.353,3.08464033]
[1773239651636,19.06266097,86.39,86.353,3.08464033]
[1773239651845,1.44659182,86.41,86.37,7.48720957]
[1773239651846,7.48720957,86.4,86.37,7.48720957]
[1773239652045,1.44659182,86.41,86.381,3.08464033]
[1773239652046,7.48720957,86.41,86.381,3.08464033]
[1773239652221,3.19559572,86.406,86.37,7.48720957]
[1773239652425,3.19559572,86.399,86.371,11.57796019]
[1773239652622,11.57313643,86.407,86.372,3.08464033]
[1773239653331,14.76873215,86.407,86.372,3.08464033]
[1773239653939,3.19559572,86.429,86.391,3.08464033]
[1773239654129,3.19559572,86.419,86.381,3.08464033]
[1773239654325,3.19559572,86.399,86.36,19.06664449]
[1773239654531,3.19559572,86.399,86.361,3.08464033]
[1773239654721,10.68280529,86.41,86.371,3.08464033]
[1773239654920,3.19559572,86.409,86.371,3.08464033]
[1773239656746,2.76,86.431,86.391,3.08464033]
[1773239656747,11.5704583,86.427,86.391,3.08464033]
[1773239657839,11.5704583,86.427,86.368,3.08464033]
[1773239657840,7.48720957,86.4,86.368,3.08464033]
[1773239658144,10.68280529,86.41,86.371,3.08464033]
[1773239659043,3.19559572,86.408,86.372,11.57782614]
[1773239659243,7.48720957,86.4,86.371,3.08464033]
[1773239659425,3.19559572,86.408,86.372,14.66246647]
[1773239660427,7.48720957,86.4,86.372,3.08464033]
[1773239660638,7.48720957,86.4,86.372,14.66246647]
[1773239660840,11.57286856,86.409,86.373,3.16184556]
[1773239661035,3.2648505,86.408,86.374,11.57755806]
[1773239661234,7.48720957,86.38,86.351,3.16184556]
[1773239661434,3.2648505,86.389,86.292,46.35411812]
[1773239661435,7.48720957,86.36,86.336,2.84]
[1773239661643,7.48720957,86.37,86.333,3.16184556]
[1773239661843,10.75206007,86.38,86.341,3.16184556]
[1773239662140,7.48720957,86.37,86.341,3.16184556]
[1773239662538,3.2648505,86.379,86.341,3.16184556]
[1773239662744,7.48720957,86.39,86.351,3.16184556]
[1773239663248,3.2648505,86.379,86.348,11.58102165]
[1773239663649,11.57554781,86.389,86.351,3.16184556]
[1773239664450,14.84039831,86.389,86.351,3.16184556]
[1773239664644,11.57554781,86.389,86.361,3.16184556]
[1773239665047,40.50972811,86.399,86.363,3.16184556]
[1773239665343,3.2648505,86.389,86.351,3.16184556]
[1773239665545,7.48720957,86.37,86.341,3.16184556]
[1773239665748,10.75206007,86.37,86.332,3.16184556]
[1773239666449,1.44696022,86.388,86.332,3.16184556]
[1773239666651,3.2648505,86.379,86.341,3.16184556]
[1773239666856,7.48720957,86.37,86.341,3.16184556]
[1773239667538,11.57822829,86.369,86.341,14.74378973]
[1773239667941,7.48720957,86.37,86.342,3.16184556]
[1773239668140,11.57554781,86.389,86.351,3.16184556]
[1773239668761,11.57468241,86.396,86.361,3.16184556]
[1773239669254,11.57468241,86.396,86.37,7.48720957]
[1773239669551,11.57468241,86.396,86.361,3.16184556]
[1773239669736,11.57468241,86.396,86.36,7.50581394]
[1773239669737,11.57468241,86.396,86.363,3.16184556]
[1773239670260,7.50581394,86.39,86.363,3.16184556]
[1773239670653,3.2648505,86.389,86.351,3.16184556]
[1773239671537,3.2648505,86.389,86.351,14.74248735]
[1773239671739,3.2648505,86.379,86.343,3.16184556]
[1773239672149,3.2648505,86.379,86.35,7.50581394]
[1773239672656,3.2648505,86.379,86.342,11.58184892]
[1773239672657,11.57447596,86.397,86.361,3.16184556]
[1773239673052,11.57447596,86.397,86.371,3.16184556]
[1773239673482,2.76,86.427,86.355,2.84]
[1773239673483,3.2648505,86.426,86.39,7.50581394]
[1773239673646,3.2648505,86.422,86.391,11.57527983]
[1773239673846,11.57047473,86.427,86.4,7.50581394]
[1773239674038,3.2648505,86.426,86.391,11.57527983]
[1773239674551,3.2648505,86.426,86.4,7.50581394]
[1773239675764,3.2648505,86.424,86.4,7.50581394]
[1773239675952,3.2648505,86.424,86.401,11.57394011]
[1773239676140,7.50581394,86.43,86.401,11.57394011]
[1773239676141,3.2648505,86.43,86.401,11.57394011]
[1773239676666,11.56929233,86.436,86.41,7.50581394]
[1773239676872,3.2648505,86.435,86.401,40.5087904]
[1773239677053,3.2648505,86.435,86.41,7.50581394]
[1773239677360,3.2648505,86.435,86.401,40.5087904]
[1773239677864,3.2648505,86.433,86.401,11.57394011]
[1773239678068,3.2648505,86.433,86.41,7.50581394]
[1773239678362,3.2648505,86.429,86.396,11.5745428]
[1773239678569,3.2648505,86.429,86.39,10.09275012]
[1773239678763,3.2648505,86.409,86.374,11.57755806]
[1773239678966,3.2648505,86.409,86.371,11.57796019]
[1773239679164,3.2648505,86.409,86.38,7.50581394]
[1773239679475,3.2648505,86.409,86.371,40.52286067]
[1773239679476,3.2648505,86.409,86.371,11.57796019]
[1773239679775,3.16396524,86.397,86.371,11.57796019]
[1773239681664,3.16396524,86.397,86.366,11.57852046]
[1773239681862,3.16396524,86.395,86.361,11.57930084]
[1773239682170,3.16396524,86.395,86.37,7.50581394]
[1773239682470,3.16396524,86.395,86.362,2.59039019]
[1773239682657,3.16396524,86.395,86.37,7.50581394]
[1773239682963,3.16396524,86.395,86.361,11.57930084]
[1773239683348,3.16396524,86.395,86.37,7.50581394]
[1773239683964,3.16396524,86.395,86.371,11.57796019]
[1773239684163,11.57382749,86.402,86.371,11.57796019]
[1773239685049,3.16396524,86.401,86.371,11.57796019]
[1773239685452,3.16396524,86.399,86.36,7.50581394]
[1773239685669,3.16396524,86.399,86.37,7.50581394]
[1773239686754,11.57434199,86.398,86.371,11.57796019]
[1773239686954,3.16396524,86.397,86.371,11.57796019]
[1773239688069,3.16396524,86.409,86.38,7.50581394]
[1773239688270,1.44637422,86.423,86.38,7.50581394]
[1773239688271,3.16396524,86.406,86.38,7.50581394]
[1773239688975,14.73736955,86.405,86.38,7.50581394]
[1773239689374,11.57166331,86.418,86.39,10.10071651]
[1773239689677,11.57108563,86.423,86.391,2.59490257]
[1773239690183,11.57059218,86.426,86.4,7.50581394]
[1773239690356,11.57014984,86.43,86.41,7.50581394]
[1773239690857,11.57014984,86.43,86.401,2.5961262]
[1773239691055,7.50581394,86.43,86.391,31.53491291]
[1773239691255,2.99893833,86.429,86.4,7.50581394]
[1773239692178,2.99893833,86.429,86.41,7.50581394]
[1773239692556,2.99893833,86.429,86.4,7.50581394]
[1773239693178,2.99893833,86.427,86.401,11.57394011]
[1773239693575,11.57032443,86.428,86.384,2.84]
[1773239693576,2.99893833,86.419,86.384,2.84]
[1773239693767,2.99893833,86.419,86.39,7.50581394]
[1773239694163,2.99893833,86.419,86.384,2.84]
[1773239694164,11.57032443,86.428,86.4,7.50581394]
[1773239694357,2.99893833,86.427,86.4,7.50581394]
[1773239694877,11.56957084,86.434,86.41,7.50581394]
[1773239695181,2.99893833,86.444,86.411,11.57260071]
[1773239695683,2.99893833,86.444,86.41,7.50581394]
[1773239695863,2.99893833,86.439,86.41,7.50581394]
[1773239696579,2.99893833,86.439,86.409,11.57278087]
[1773239696779,2.99893833,86.439,86.41,7.50581394]
[1773239697475,2.99893833,86.438,86.411,11.57260071]
[1773239698582,2.99893833,86.466,86.431,2.60074757]
[1773239698886,2.99893833,86.474,86.45,7.50581394]
[1773239699065,11.56390212,86.476,86.45,7.50581394]
[1773239699380,11.56390212,86.476,86.423,3.69383402]
[1773239699381,2.99893833,86.469,86.43,7.50581394]
[1773239699579,2.99893833,86.467,86.44,7.50581394]
[1773239700161,2.99893833,86.467,86.431,11.56992282]
[1773239700703,3.19893833,86.48,86.45,7.50581394]
[1773239701275,46.23466955,86.516,86.43,11.5699553]
[1773239701276,1.44493636,86.509,86.47,7.50581394]
[1773239701495,1.44486955,86.513,86.471,3.2306137]
[1773239701666,11.55909006,86.512,86.48,7.50581394]
[1773239701860,7.50581394,86.5,86.462,11.56573875]
[1773239702182,7.50581394,86.5,86.461,11.56590832]
[1773239702477,40.45681523,86.512,86.48,7.50581394]
[1773239702478,11.55909006,86.512,86.48,7.50581394]
[1773239702683,7.50581394,86.51,86.48,7.50581394]
[1773239702982,7.70581394,86.52,86.48,7.50581394]
[1773239703280,0.2,86.52,86.491,3.2306137]
[1773239703519,2.99893833,86.518,86.481,3.2306137]
[1773239703672,0.2,86.53,86.501,3.2306137]
[1773239703878,0.2,86.53,86.52,7.50581394]
[1773239704186,11.55494956,86.543,86.521,3.2306137]
[1773239704373,2.99893833,86.555,86.53,7.50581394]
[1773239704562,2.76,86.607,86.503,3.69383402]
[1773239704563,2.99893833,86.549,86.52,7.50581394]
[1773239704758,7.50581394,86.57,86.531,3.2306137]
[1773239704963,11.54947796,86.584,86.55,7.50581394]
[1773239705164,11.54747745,86.599,86.56,7.50581394]
[1773239705364,11.54747745,86.599,86.53,7.50581394]
[1773239705365,7.50581394,86.57,86.53,7.50581394]
[1773239705667,11.55147916,86.569,86.54,7.50581394]
[1773239705865,41.87411196,86.569,86.53,10.73642764]
[1773239706564,7.50581394,86.56,86.53,10.73642764]
[1773239706770,2.99893833,86.568,86.531,11.55655198]
[1773239707198,2.99893833,86.559,86.53,7.50581394]
[1773239707368,2.99893833,86.569,86.54,7.50581394]
[1773239707570,2.76,86.584,86.523,11.55751724]
[1773239707571,11.54987814,86.581,86.56,7.50581394]
[1773239707779,11.54987814,86.581,86.551,3.2306137]
[1773239708092,11.54987814,86.581,86.552,11.55374803]
[1773239708286,11.54913144,86.587,86.553,3.2306137]
[1773239708482,11.54913144,86.587,86.56,7.50581394]
[1773239708786,11.54913144,86.587,86.561,3.2306137]
[1773239708972,2.99893833,86.586,86.55,7.50581394]
[1773239709170,2.99893833,86.586,86.501,46.2422245]
[1773239709171,2.99893833,86.579,86.541,3.2306137]
[1773239709689,2.99893833,86.577,86.541,3.2306137]
[1773239709868,7.50581394,86.57,86.541,3.2306137]
[1773239710068,2.99893833,86.577,86.543,3.2306137]
[1773239710474,2.99893833,86.574,86.541,11.5552166]
[1773239710677,2.99893833,86.574,86.55,7.50581394]
[1773239711072,2.99893833,86.574,86.542,3.2306137]
[1773239711702,2.99893833,86.569,86.532,3.2306137]
[1773239711875,2.99893833,86.569,86.54,7.50581394]
[1773239712196,2.99893833,86.569,86.54,10.73642764]
[1773239712400,7.50581394,86.59,86.551,3.2306137]
[1773239712693,2.99893833,86.588,86.551,3.2306137]
[1773239712890,11.54881104,86.589,86.561,3.2306137]
[1773239713087,2.99893833,86.587,86.551,3.2306137]
[1773239713786,2.99893833,86.585,86.551,3.2306137]
[1773239713985,2.99893833,86.579,86.55,7.50581394]
[1773239714187,2.99893833,86.579,86.542,3.2306137]
[1773239714383,2.99893833,86.579,86.54,7.50581394]
[1773239714577,2.99893833,86.569,86.54,7.50581394]
[1773239714777,1.44378479,86.578,86.54,7.50581394]
[1773239714978,11.54921118,86.586,86.56,7.50581394]
[1773239715199,11.54921118,86.586,86.534,11.55615133]
[1773239715200,11.54772666,86.598,86.57,7.50581394]
[1773239715499,2.99893833,86.589,86.551,3.2306137]
[1773239715694,2.99893833,86.589,86.56,7.50581394]
[1773239715887,11.54894442,86.588,86.56,7.50581394]
[1773239716505,2.99893833,86.579,86.54,10.73642764]
[1773239716687,2.99893833,86.569,86.53,10.73642764]
[1773239716883,2.99893833,86.569,86.531,11.55655198]
[1773239717187,2.99893833,86.569,86.532,3.2306137]
[1773239717590,7.50581394,86.56,86.532,3.2306137]
[1773239717805,2.99893833,86.567,86.532,3.2306137]
[1773239718003,2.99893833,86.565,86.532,3.2306137]
[1773239718522,2.99893833,86.565,86.53,3.2306137]
[1773239718684,7.50581394,86.56,86.53,7.50581394]
[1773239718884,2.99893833,86.56,86.53,7.50581394]
[1773239719285,2.99893833,86.56,86.531,3.2306137]
[1773239719687,11.55128568,86.571,86.54,7.50581394]
[1773239719885,11.55128568,86.571,86.541,3.22340378]
[1773239720506,31.9724359,86.576,86.542,3.22340378]
[1773239720708,7.50581394,86.57,86.542,3.22340378]
[1773239720888,3.09596396,86.575,86.542,3.22340378]
[1773239721385,28.87647194,86.576,86.543,3.22340378]
[1773239721700,28.87647194,86.576,86.523,3.22340378]
[1773239721701,7.50581394,86.56,86.523,3.22340378]
[1773239721908,3.09596396,86.559,86.531,3.22340378]
[1773239722097,11.55027836,86.578,86.551,3.22340378]
[1773239722403,11.54947796,86.584,86.56,7.50581394]
[1773239722608,3.09596396,86.598,86.561,3.22340378]
[1773239723108,3.09596396,86.598,86.56,7.50581394]
[1773239723109,1.44311805,86.618,86.552,40.43811811]
[1773239723110,1.44313471,86.617,86.591,3.22340378]
[1773239723301,3.09596396,86.639,86.61,7.50581394]
[1773239723605,40.39797778,86.638,86.61,7.50581394]
[1773239723789,11.54227936,86.638,86.62,7.50581394]
[1773239724310,0.1,86.65,86.63,7.50581394]
[1773239724506,0.1,86.65,86.621,3.22340378]
[1773239724700,0.1,86.65,86.62,7.50581394]
[1773239724701,3.09596396,86.649,86.62,7.50581394]
[1773239724900,0.1,86.65,86.621,3.22340378]
[1773239725091,0.1,86.65,86.63,7.50581394]
[1773239725602,11.53718194,86.677,86.641,3.22340378]
[1773239725802,11.53718194,86.677,86.65,7.50581394]
[1773239726005,11.53718194,86.677,86.65,10.72921772]
[1773239726304,11.53718194,86.677,86.65,7.50581394]
[1773239727008,11.53718194,86.677,86.651,3.22340378]
[1773239727186,11.53535586,86.69,86.651,3.22340378]
[1773239727389,19.0411698,86.69,86.651,3.22340378]
[1773239727687,19.0411698,86.69,86.66,7.50581394]
[1773239727688,3.09596396,86.689,86.66,7.50581394]
[1773239727903,11.53466332,86.696,86.67,7.50581394]
[1773239728317,3.09596396,86.689,86.651,3.22340378]
[1773239728602,3.09596396,86.687,86.66,7.50581394]
[1773239728809,11.535622,86.688,86.661,3.22340378]
[1773239728997,3.09596396,86.687,86.66,7.50581394]
[1773239729199,11.535622,86.688,86.66,7.50581394]
[1773239729403,11.535622,86.688,86.661,3.22340378]
[1773239729785,11.535622,86.688,86.652,3.22340378]
[1773239730212,40.374677,86.688,86.652,3.22340378]
[1773239730394,40.374677,86.688,86.66,7.50581394]
[1773239730790,3.09596396,86.679,86.64,7.50581394]
[1773239731491,3.09596396,86.679,86.65,7.50581394]
[1773239731703,3.09596396,86.679,86.65,7.45651495]
[1773239731905,3.09596396,86.679,86.64,3.22340378]
[1773239731906,3.09596396,86.679,86.641,3.22340378]
[1773239732608,1.44193611,86.689,86.65,7.45651495]
[1773239732795,3.09596396,86.69,86.619,46.17878437]
[1773239732796,3.09596396,86.7,86.67,7.45651495]
[1773239732997,3.09596396,86.7,86.662,3.22340378]
[1773239732998,11.53485558,86.694,86.662,3.22340378]
[1773239733198,3.09596396,86.689,86.652,3.22340378]
[1773239733802,3.09596396,86.687,86.652,3.22340378]
[1773239734511,3.09596396,86.679,86.631,3.22340378]
[1773239734702,3.09596396,86.679,86.64,7.45651495]
[1773239734902,3.09596396,86.677,86.64,7.45651495]
[1773239735212,7.45651495,86.65,86.561,3.22340378]
[1773239735413,1.44215238,86.676,86.62,7.45651495]
[1773239735414,7.45651495,86.66,86.62,7.45651495]
[1773239735597,3.09596396,86.649,86.62,7.45651495]
[1773239735801,3.09596396,86.662,86.631,3.22340378]
[1773239736020,3.09596396,86.669,86.631,3.22340378]
[1773239736202,3.09596396,86.649,86.61,7.45651495]
[1773239736405,3.09596396,86.629,86.59,7.45651495]
[1773239736599,7.45651495,86.63,86.591,3.22340378]
[1773239736915,11.54481118,86.619,86.591,3.22340378]
[1773239737288,43.5028031,86.619,86.568,3.22340378]
[1773239737492,43.5028031,86.619,86.59,7.45651495]
[1773239737493,3.09596396,86.618,86.59,7.45651495]
[1773239737720,3.09596396,86.618,86.581,3.22340378]
[1773239738916,40.40683914,86.619,86.591,3.22340378]
[1773239739296,11.54481118,86.619,86.591,3.22340378]
[1773239739496,3.09596396,86.618,86.582,3.22340378]
[1773239739800,11.54481118,86.619,86.582,3.22340378]
[1773239740396,11.54481118,86.619,86.581,11.54987814]
[1773239740397,11.54481118,86.619,86.591,3.06348975]
[1773239741100,3.18004444,86.625,86.591,3.06348975]
[1773239741304,3.18004444,86.619,86.582,3.06348975]
[1773239741910,40.40357398,86.626,86.561,3.06348975]
[1773239741911,10.63655939,86.6,86.561,3.06348975]
[1773239742101,10.63655939,86.6,86.562,3.06348975]
[1773239743115,40.41663778,86.598,86.562,3.06348975]
[1773239743318,40.41663778,86.598,86.548,2.8]
[1773239743319,40.41663778,86.598,86.541,3.06348975]
[1773239743320,3.18004444,86.579,86.541,3.06348975]
[1773239743814,3.18004444,86.569,86.531,3.06348975]
[1773239744198,3.18004444,86.569,86.532,3.06348975]
[1773239744613,7.45651495,86.58,86.532,3.06348975]
[1773239744816,7.45651495,86.57,86.532,3.06348975]
[1773239745220,11.55147916,86.569,86.534,3.06348975]
[1773239745414,7.45651495,86.58,86.541,3.06348975]
[1773239745602,3.18004444,86.575,86.541,3.06348975]
[1773239745802,3.18004444,86.569,86.534,3.06348975]